bitfinex/quotes_BTCUSD_20230111
["timestamp","ask_amount","ask_price","bid_price","bid_amount"]
[1673451790238,0.1106,17358.0,17357.0,1.21267946]
[1673451790507,0.7534547,17358.0,17357.0,1.21267946]
[1673451791304,1.30403218,17358.0,17357.0,0.06044046]
[1673451792308,1.30403218,17358.0,17357.0,0.02032756]
[1673451795267,0.66117748,17358.0,17357.0,0.02032756]
[1673451795526,1.38584933,17358.0,17357.0,0.02032756]
[1673451795788,1.26608557,17358.0,17357.0,0.02032756]
[1673451796327,1.34708048,17358.0,17357.0,0.02032756]
[1673451796587,1.64708048,17358.0,17357.0,0.02032756]
[1673451797624,2.22318348,17358.0,17357.0,0.02032756]
[1673451797877,1.64708048,17358.0,17357.0,0.02032756]
[1673451798690,2.22318348,17358.0,17357.0,0.02032756]
[1673451799697,1.02445268,17357.0,17356.0,1e-08]
[1673451800014,2.61720216,17357.0,17356.0,1e-08]
[1673451801053,4.61720216,17357.0,17356.0,1e-08]
[1673451801580,6.61720216,17357.0,17356.0,1e-08]
[1673451802356,6.90951003,17357.0,17356.0,1e-08]
[1673451802695,5.999e-05,17355.0,17354.0,0.02032756]
[1673451802895,0.46926788,17355.0,17354.0,0.02032756]
[1673451803166,2.04567147,17355.0,17354.0,0.02032756]
[1673451804202,2.34567147,17355.0,17354.0,0.02032756]
[1673451804468,4.45627147,17355.0,17354.0,0.02032756]
[1673451804730,5.84761914,17355.0,17354.0,0.02032756]
[1673451805797,6.42382114,17355.0,17354.0,0.02032756]
[1673451806055,6.12382114,17355.0,17354.0,0.02032756]
[1673451806835,6.42382114,17355.0,17354.0,0.02032756]
[1673451807091,7.0032122,17355.0,17354.0,0.02032756]
[1673451807355,6.42382114,17355.0,17354.0,0.02032756]
[1673451808996,5.92552114,17355.0,17354.0,0.02026722]
[1673451809327,5.62552114,17355.0,17354.0,0.02026722]
[1673451809590,0.25121646,17353.0,17352.0,0.02372033]
[1673451809854,2.64110094,17353.0,17352.0,0.02372033]
[1673451810107,2.17543194,17353.0,17352.0,0.02372033]
[1673451810360,2.47543194,17353.0,17352.0,0.02372033]
[1673451810658,4.77543194,17353.0,17352.0,0.02372033]
[1673451811177,6.77543194,17353.0,17352.0,0.02372033]
[1673451811437,6.77543194,17353.0,17351.0,1.56e-06]
[1673451811438,0.3,17352.0,17351.0,1.56e-06]
[1673451811695,2.52378148,17352.0,17351.0,1.56e-06]
[1673451813388,2.81504198,17352.0,17351.0,1.56e-06]
[1673451813649,2.11428148,17352.0,17351.0,1.56e-06]
[1673451814172,2.73739965,17352.0,17351.0,1.56e-06]
[1673451815222,2.84789965,17352.0,17351.0,1.56e-06]
[1673451816062,3.14789965,17352.0,17351.0,1.56e-06]
[1673451816289,2.84789965,17352.0,17351.0,1.56e-06]
[1673451817068,1.64847948,17352.0,17351.0,1.56e-06]
[1673451817377,1.53787948,17352.0,17351.0,1.56e-06]
[1673451819043,0.96157748,17352.0,17351.0,1.56e-06]
[1673451819327,0.74047748,17352.0,17351.0,1.56e-06]
[1673451819818,0.3,17352.0,17351.0,1.56e-06]
[1673451820613,0.74047748,17352.0,17351.0,1.56e-06]
[1673451820863,1.53797948,17352.0,17351.0,1.56e-06]
[1673451822700,1.53797948,17352.0,17349.0,0.02692936]
[1673451822701,0.23158844,17350.0,17349.0,0.02692936]
[1673451822901,0.34218844,17350.0,17349.0,0.02692936]
[1673451823138,0.64218844,17350.0,17349.0,0.02692936]
[1673451823376,0.53158844,17350.0,17349.0,0.02692936]
[1673451823625,0.30005844,17350.0,17349.0,0.02692936]
[1673451824377,0.30005844,17350.0,17349.0,0.02718378]
[1673451824620,0.30005844,17350.0,17349.0,0.02692936]
[1673451826874,1.55449295,17350.0,17349.0,0.02692936]
[1673451827122,1.87577258,17350.0,17349.0,0.02692936]
[1673451827380,1.31681506,17350.0,17349.0,0.02692936]
[1673451827866,1.89318306,17350.0,17349.0,0.02692936]
[1673451828106,2.06449113,17350.0,17349.0,0.02692936]
[1673451828843,2.54265323,17350.0,17349.0,0.02692936]
[1673451829125,2.71212741,17350.0,17349.0,0.02692936]
[1673451829368,4.00790379,17350.0,17349.0,0.02692936]
[1673451829617,0.3,17349.0,17345.0,0.02400964]
[1673451829857,0.3,17347.0,17345.0,0.60054364]
[1673451830091,0.3,17347.0,17345.0,0.60039364]
[1673451830092,0.97789231,17347.0,17345.0,0.60039364]
[1673451830365,0.53767789,17347.0,17345.0,0.60039364]
[1673451830600,0.74012686,17347.0,17345.0,0.02385964]
[1673451831087,2.74012686,17347.0,17345.0,0.02385964]
[1673451832069,0.5178616,17346.0,17345.0,0.60038964]
[1673451832294,0.95816449,17346.0,17345.0,0.60038964]
[1673451832539,0.95812068,17346.0,17345.0,0.02385964]
[1673451832807,1.25812068,17346.0,17345.0,0.02385964]
[1673451836018,1.83462168,17346.0,17345.0,0.02385964]
[1673451837261,1.25812068,17346.0,17345.0,0.02385964]
[1673451838722,1.83462168,17346.0,17345.0,0.02385964]
[1673451839694,1.25812068,17346.0,17345.0,0.02385964]
[1673451840498,1.41758458,17346.0,17345.0,0.02385964]
[1673451841449,0.74025908,17346.0,17345.0,0.02385964]
[1673451841690,1.29248357,17346.0,17345.0,0.02385964]
[1673451841967,1.31676008,17346.0,17345.0,0.02385964]
[1673451842220,0.91090534,17346.0,17345.0,0.02385964]
[1673451842472,2.08515069,17346.0,17345.0,0.02385964]
[1673451842708,2.08550557,17346.0,17345.0,0.02385964]
[1673451842951,1.74478015,17346.0,17345.0,0.02385964]
[1673451843213,1.16827915,17346.0,17345.0,0.02385964]
[1673451843692,1.87269009,17346.0,17345.0,0.02385964]
[1673451843944,1.89751891,17346.0,17345.0,0.02385964]
[1673451844181,1.16828286,17346.0,17345.0,0.02385964]
[1673451844674,1.46933214,17346.0,17345.0,0.02385964]
[1673451845167,1.53994945,17346.0,17345.0,0.02385964]
[1673451845658,1.53994945,17346.0,17345.0,0.01885964]
[1673451845918,0.91132076,17346.0,17345.0,0.01885964]
[1673451846401,1.48782176,17346.0,17345.0,0.01885964]
[1673451846883,1.59812176,17346.0,17345.0,0.01885964]
[1673451847128,2.71130543,17346.0,17345.0,0.01885964]
[1673451847364,2.54157392,17346.0,17345.0,0.01885964]
[1673451847615,2.71130543,17346.0,17345.0,0.01885964]
[1673451848267,2.54152989,17346.0,17345.0,0.01885964]
[1673451848545,2.28456779,17346.0,17345.0,0.01885964]
[1673451849378,2.54152989,17346.0,17345.0,0.01885964]
[1673451849586,2.88231214,17346.0,17345.0,0.01885964]
[1673451849876,3.28780643,17346.0,17345.0,0.01885964]
[1673451850141,2.71130543,17346.0,17345.0,0.01885964]
[1673451850691,3.28780643,17346.0,17345.0,0.01885964]
[1673451851205,3.11803171,17346.0,17345.0,0.01885964]
[1673451852137,2.28456861,17346.0,17345.0,0.01885964]
[1673451852596,2.54153071,17346.0,17345.0,0.01885964]
[1673451853564,2.28456861,17346.0,17345.0,0.01885964]
[1673451854633,2.11356108,17346.0,17345.0,0.01885964]
[1673451855140,2.28456861,17346.0,17345.0,0.01885964]
[1673451855648,2.11356108,17346.0,17345.0,0.01885964]
[1673451855967,0.74025908,17346.0,17345.0,0.01885964]
[1673451856212,1.3604385,17346.0,17345.0,0.01885964]
[1673451856723,0.74025908,17346.0,17345.0,0.01885964]
[1673451856980,1.31676008,17346.0,17345.0,0.01385964]
[1673451857284,1.85552971,17346.0,17345.0,0.01385964]
[1673451857537,0.25507786,17344.0,17343.0,0.07385964]
[1673451857797,0.93189499,17344.0,17343.0,0.07385964]
[1673451858055,3.69816848,17344.0,17343.0,0.07385964]
[1673451858318,3.44173845,17344.0,17343.0,0.07385964]
[1673451858607,3.91976848,17344.0,17343.0,0.07385964]
[1673451858859,4.66616538,17344.0,17343.0,0.07385964]
[1673451859114,5.24273338,17344.0,17343.0,0.07385964]
[1673451859366,5.41364986,17344.0,17343.0,0.07385964]
[1673451859635,0.3,17343.0,17341.0,1e-08]
[1673451859934,0.43877934,17342.0,17341.0,1e-08]
[1673451860448,3.01541334,17342.0,17341.0,1e-08]
[1673451860706,2.43877934,17342.0,17341.0,1e-08]
[1673451861449,2.0,17342.0,17341.0,1e-08]
[1673451861704,2.0,17342.0,17341.0,0.57666801]
[1673451862220,2.0,17342.0,17341.0,0.37666801]
[1673451862739,0.3,17342.0,17341.0,0.37666801]
[1673451863547,0.72858592,17342.0,17341.0,0.37666801]
[1673451863839,0.5962268,17341.0,17340.0,1.153466]
[1673451864103,1.03481272,17341.0,17340.0,1.153466]
[1673451864386,0.5962268,17341.0,17340.0,0.576785]
[1673451864663,1.27249061,17341.0,17340.0,0.0001]
[1673451864938,1.03481272,17341.0,17340.0,0.0001]
[1673451866293,0.43858592,17341.0,17340.0,0.0001]
[1673451866776,1.08781406,17341.0,17340.0,0.0001]
[1673451867029,0.43858592,17341.0,17340.0,0.0001]
[1673451867296,0.95981555,17340.0,17339.0,0.03268016]
[1673451867543,1.44840147,17340.0,17339.0,0.03268016]
[1673451868072,3.44840147,17340.0,17339.0,0.00768016]
[1673451868593,3.44840147,17340.0,17339.0,0.58441416]
[1673451868861,2.05,17340.0,17339.0,1.16114816]
[1673451869141,2.05,17340.0,17339.0,2.35026631]
[1673451869647,0.05,17340.0,17339.0,2.35026631]
[1673451870161,0.05,17340.0,17339.0,2.71101731]
[1673451870452,0.03847,17340.0,17339.0,2.71101731]
[1673451870669,0.03847,17340.0,17339.0,2.35026631]
[1673451872201,0.03847,17340.0,17339.0,2.65026631]
[1673451872452,0.03847,17340.0,17339.0,2.8226161]
[1673451873030,0.03847,17340.0,17339.0,3.44189178]
[1673451873227,0.03847,17340.0,17339.0,3.61424157]
[1673451873733,0.03847,17340.0,17339.0,3.78659136]
[1673451874341,0.03847,17340.0,17339.0,3.44189178]
[1673451874525,0.03847,17340.0,17339.0,3.55169178]
[1673451875045,7e-05,17340.0,17339.0,3.19258083]
[1673451875315,0.02354786,17344.0,17340.0,0.3]
[1673451875582,0.02354786,17344.0,17343.0,0.2216]
[1673451875858,0.02354786,17344.0,17343.0,2.390554]
[1673451876652,0.02354786,17344.0,17343.0,3.08310141]
[1673451876967,0.02354786,17344.0,17343.0,3.34177252]
[1673451877223,0.02354786,17344.0,17343.0,3.17418542]
[1673451877488,0.02354786,17344.0,17343.0,3.28930288]
[1673451877757,0.02354786,17344.0,17343.0,3.54797399]
[1673451878020,0.02354786,17344.0,17343.0,3.28930288]
[1673451878313,0.02354786,17344.0,17343.0,3.25060889]
[1673451878588,0.02354786,17344.0,17343.0,3.42305629]
[1673451878852,0.02354786,17344.0,17343.0,4.07866881]
[1673451879112,0.02354786,17344.0,17343.0,3.37540369]
[1673451879379,0.02354786,17344.0,17343.0,3.03050888]
[1673451879654,0.02354786,17344.0,17343.0,4.07827095]
[1673451879915,0.04716691,17344.0,17343.0,3.03050888]
[1673451880176,0.02361905,17344.0,17343.0,3.03050888]
[1673451880434,0.02361905,17344.0,17343.0,4.03050888]
[1673451881185,1.1160753,17348.0,17344.0,0.3]
[1673451881448,0.67940044,17348.0,17346.0,0.1108]
[1673451881711,0.67940044,17348.0,17347.0,1.152936]
[1673451881965,0.67940044,17348.0,17347.0,1.4930489]
[1673451882312,0.67940044,17348.0,17347.0,1.1930489]
[1673451882504,0.3,17349.0,17347.0,1.1930489]
[1673451882764,0.67808194,17348.0,17347.0,1.1930489]
[1673451884865,0.3,17349.0,17347.0,1.1930489]
[1673451885105,0.99509047,17350.0,17347.0,1.7695169]
[1673451885372,0.99509047,17350.0,17348.0,0.97327336]
[1673451885633,0.99509047,17350.0,17349.0,1.152804]
[1673451885889,0.99009047,17350.0,17349.0,1.152804]
[1673451886202,1.19776347,17350.0,17349.0,1.152804]
[1673451886991,0.90276347,17350.0,17349.0,1.152804]
[1673451887252,0.207773,17350.0,17349.0,1.152804]
[1673451887728,0.0001,17350.0,17349.0,1.152804]
[1673451887985,0.50859205,17351.0,17349.0,1.152804]
[1673451888239,0.80859205,17351.0,17349.0,1.152804]
[1673451888510,0.207673,17350.0,17349.0,1.729206]
[1673451888762,0.50859205,17351.0,17349.0,1.729206]
[1673451889271,0.80859205,17351.0,17349.0,1.729206]
[1673451890084,0.3,17351.0,17349.0,1.729206]
[1673451890572,2.30247389,17352.0,17349.0,1.729206]
[1673451890573,2.91712281,17352.0,17350.0,0.6060076]
[1673451890826,2.91712281,17352.0,17351.0,1.15267]
[1673451890827,0.61712281,17352.0,17351.0,1.15267]
[1673451891111,0.61712281,17352.0,17351.0,1.729005]
[1673451892420,0.61712281,17352.0,17351.0,1.72886274]
[1673451892962,0.61712281,17352.0,17351.0,1.76897564]
[1673451893481,0.61712281,17352.0,17351.0,1.77747564]
[1673451893754,2.54617203,17354.0,17351.0,2.38444489]
[1673451894234,2.54617203,17354.0,17352.0,0.52177677]
[1673451894236,2.54617203,17354.0,17351.0,1.77747564]
[1673451894237,0.3,17353.0,17351.0,1.77747564]
[1673451894497,0.99322674,17353.0,17352.0,0.576284]
[1673451894762,1.20089974,17353.0,17352.0,0.576284]
[1673451895300,0.99322674,17353.0,17352.0,1.15368065]
[1673451895553,0.69322674,17353.0,17352.0,1.728888]
[1673451895807,0.30228648,17354.0,17352.0,1.728888]
[1673451896319,0.207673,17353.0,17352.0,1.728888]
[1673451896833,0.207673,17353.0,17352.0,1.152586]
[1673451898104,0.97800236,17354.0,17352.0,1.152586]
[1673451898365,0.207673,17353.0,17352.0,1.152586]
[1673451899199,0.97800236,17354.0,17352.0,1.152586]
[1673451899984,0.1,17353.0,17352.0,1.152586]
[1673451900816,0.76503386,17353.0,17352.0,1.152586]
[1673451901073,0.76503386,17353.0,17352.0,0.576284]
[1673451901325,1.40607098,17353.0,17351.0,1.1927639]
[1673451901589,1.40607098,17353.0,17350.0,0.576354]
[1673451901590,0.43477384,17352.0,17350.0,0.576354]
[1673451901904,0.43477384,17352.0,17349.0,0.00015]
[1673451901905,0.207673,17351.0,17349.0,0.00015]
[1673451902171,0.94244684,17350.0,17347.0,1.69074038]
[1673451902429,0.53767789,17350.0,17347.0,1.11429038]
[1673451902695,0.97245173,17350.0,17347.0,1.11429038]
[1673451903487,0.69383981,17349.0,17347.0,1.11429038]
[1673451904266,0.69383981,17349.0,17347.0,1.69075838]
[1673451905093,0.69383981,17349.0,17348.0,0.0010949]
[1673451905346,0.69383981,17349.0,17348.0,0.576435]
[1673451905922,0.69383981,17349.0,17347.0,0.576442]
[1673451906182,0.89408981,17348.0,17346.0,0.57648]
[1673451906444,1.65886854,17348.0,17346.0,1.152953]
[1673451906980,1.65886854,17348.0,17345.0,0.57651]
[1673451906981,0.64244684,17347.0,17345.0,0.57651]
[1673451907460,0.4104,17346.0,17344.0,1.87753155]
[1673451907462,0.4104,17346.0,17344.0,1.30097455]
[1673451907721,0.207673,17345.0,17343.0,1.29379064]
[1673451907977,0.67245173,17345.0,17344.0,0.66763667]
[1673451908238,0.73477384,17347.0,17345.0,0.52328571]
[1673451908520,0.3,17347.0,17345.0,0.52328571]
[1673451908762,0.57516676,17346.0,17345.0,1.09981871]
[1673451909020,2.3,17347.0,17345.0,1.97635371]
[1673451909526,2.3,17347.0,17345.0,1.67635371]
[1673451909815,0.3,17347.0,17345.0,1.67635371]
[1673451910033,0.9131672,17347.0,17345.0,1.67635371]
[1673451911365,0.6131672,17347.0,17345.0,1.67635371]
[1673451911907,0.73477384,17348.0,17345.0,1.67635371]
[1673451911908,0.96040578,17348.0,17346.0,0.65867003]
[1673451912167,3.2884,17349.0,17347.0,1.152936]
[1673451912168,2.0,17349.0,17347.0,1.152936]
[1673451912507,2.0,17349.0,17347.0,1.452936]
[1673451913009,0.5909457,17350.0,17347.0,1.452936]
[1673451913260,0.5909457,17350.0,17347.0,2.029404]
[1673451914276,0.0001,17350.0,17347.0,2.20165027]
[1673451914795,0.0001,17350.0,17348.0,0.5163579]
[1673451915073,0.0001,17350.0,17349.0,2.329206]
[1673451915330,0.0001,17350.0,17349.0,2.690114]
[1673451915593,0.0001,17350.0,17349.0,2.329206]
[1673451916696,0.0001,17350.0,17349.0,2.50145227]
[1673451916967,2.61818,17352.0,17350.0,0.93299721]
[1673451917229,2.61818,17352.0,17351.0,2.029005]
[1673451917487,0.66740236,17353.0,17351.0,2.029005]
[1673451917787,0.1,17353.0,17351.0,2.029005]
[1673451918053,0.1,17353.0,17352.0,0.3]
[1673451918315,0.1,17353.0,17352.0,2.328906]
[1673451918856,0.1,17353.0,17352.0,2.86206027]
[1673451919349,0.1,17353.0,17352.0,2.800314]
[1673451919616,0.1,17353.0,17352.0,2.689814]
[1673451919870,0.1,17353.0,17352.0,3.12540084]
[1673451921181,0.1,17353.0,17352.0,2.76449284]
[1673451921436,0.1,17353.0,17352.0,3.12540084]
[1673451923072,0.1,17353.0,17352.0,3.26245]
[1673451923332,0.1,17353.0,17352.0,2.87256027]
[1673451923852,0.1,17353.0,17352.0,3.33098338]
[1673451924116,0.1,17353.0,17352.0,2.87256027]
[1673451924605,0.1,17353.0,17352.0,3.34814425]
[1673451924611,0.1,17353.0,17352.0,3.23764425]
[1673451925138,0.1,17353.0,17352.0,2.589814]
[1673451925703,0.1,17353.0,17352.0,3.28535635]
[1673451926188,0.1,17353.0,17352.0,2.589814]
[1673451926458,0.1,17353.0,17352.0,2.76206027]
[1673451926721,0.1,17353.0,17352.0,3.94537734]
[1673451927211,0.1,17353.0,17352.0,3.82893856]
[1673451927214,0.00228648,17354.0,17352.0,4.02893856]
[1673451927488,0.00228648,17354.0,17353.0,2.80321952]
[1673451927745,0.00228648,17354.0,17353.0,4.30451714]
[1673451928271,0.00228648,17354.0,17353.0,4.47645752]
[1673451929623,0.00228648,17354.0,17353.0,4.25575752]
[1673451929827,0.00228648,17354.0,17353.0,4.08381714]
[1673451930093,0.00228648,17354.0,17353.0,4.08481714]
[1673451930348,2.63637544,17357.0,17354.0,0.3]
[1673451930623,0.63047064,17358.0,17356.0,0.1103]
[1673451930903,0.63047064,17358.0,17357.0,0.360908]
[1673451931167,0.63047064,17358.0,17357.0,2.028408]
[1673451931168,0.63847064,17358.0,17357.0,2.028408]
[1673451931433,0.63047064,17358.0,17357.0,2.028408]
[1673451931978,0.63047064,17358.0,17357.0,1.728408]
[1673451932530,0.83814364,17358.0,17357.0,1.728408]
[1673451932793,0.63047064,17358.0,17357.0,1.728408]
[1673451933058,1.26712322,17358.0,17357.0,0.576136]
[1673451933823,1.26712322,17358.0,17356.0,0.576163]
[1673451933824,1.26712322,17358.0,17357.0,0.084]
[1673451934084,1.28925022,17358.0,17357.0,0.084]
[1673451934343,0.3,17357.0,17353.0,1.14984187]
[1673451934604,0.77611273,17356.0,17353.0,1.14999187]
[1673451934877,0.77598309,17356.0,17354.0,0.63679708]
[1673451935120,1.38868036,17357.0,17354.0,1.78923508]
[1673451935384,0.96117516,17357.0,17354.0,1.78923508]
[1673451935635,1.38833438,17357.0,17354.0,1.78923508]
[1673451935896,0.54391716,17355.0,17354.0,0.576207]
[1673451936172,0.78159505,17355.0,17354.0,0.576207]
[1673451936428,0.86239016,17355.0,17353.0,0.007]
[1673451936691,0.507673,17354.0,17352.0,1.27835159]
[1673451936960,0.53767789,17354.0,17352.0,1.27835159]
[1673451937231,0.3,17354.0,17352.0,1.27835159]
[1673451937531,0.3,17354.0,17352.0,1.85462559]
[1673451937786,0.87969799,17354.0,17353.0,0.007]
[1673451938046,0.87969799,17354.0,17352.0,1.85462559]
[1673451938316,0.89469799,17354.0,17352.0,1.86162559]
[1673451938573,0.71509148,17353.0,17352.0,1.86162559]
[1673451938845,0.71509148,17353.0,17352.0,1.159547]
[1673451939634,0.71509148,17353.0,17352.0,1.152547]
[1673451939899,0.73009148,17353.0,17352.0,1.459547]
[1673451940380,0.015,17353.0,17352.0,1.459547]
[1673451941159,0.015,17353.0,17352.0,1.735849]
[1673451941435,0.015,17353.0,17352.0,2.035849]
[1673451941680,0.015,17353.0,17352.0,1.735849]
[1673451942216,0.015,17353.0,17352.0,2.035849]
[1673451943020,0.015,17353.0,17352.0,2.71985523]
[1673451943274,0.015,17353.0,17352.0,3.08076323]
[1673451943571,0.00337,17353.0,17352.0,3.08076323]
[1673451944100,0.016,17353.0,17352.0,2.72885523]
[1673451944366,0.55597302,17354.0,17352.0,2.71285523]
[1673451944644,0.009,17353.0,17352.0,2.044849]
[1673451944904,0.009,17353.0,17352.0,3.04152179]
[1673451945176,0.009,17353.0,17352.0,2.78218047]
[1673451945916,0.009,17353.0,17352.0,3.47166756]
[1673451946434,0.009,17353.0,17352.0,2.79068047]
[1673451946691,0.009,17353.0,17352.0,3.35553877]
[1673451947242,0.009,17353.0,17352.0,2.79068047]
[1673451947756,0.009,17353.0,17352.0,2.9637155]
[1673451948026,0.009,17353.0,17352.0,3.26438834]
[1673451948782,0.009,17353.0,17352.0,3.26538834]
[1673451949331,0.009,17353.0,17352.0,3.26534516]
[1673451949556,0.009,17353.0,17352.0,3.48674516]
[1673451949824,1.24041237,17359.0,17352.0,3.83208961]
[1673451950074,1.24041237,17359.0,17354.0,1.48712347]
[1673451950075,0.60904441,17358.0,17354.0,1.48712347]
[1673451950327,0.60904441,17358.0,17355.0,2.304744]
[1673451950666,0.60904441,17358.0,17356.0,0.6]
[1673451950847,0.60904441,17358.0,17356.0,0.3]
[1673451951114,0.60904441,17358.0,17357.0,1.728408]
[1673451952495,0.69704441,17358.0,17357.0,1.728408]
[1673451952759,0.90904441,17358.0,17357.0,1.728408]
[1673451953016,1.25271741,17358.0,17357.0,1.731408]
[1673451953763,0.74504441,17358.0,17357.0,1.731408]
[1673451954014,0.136,17358.0,17357.0,1.731408]
[1673451955038,0.136,17358.0,17357.0,2.031408]
[1673451955307,0.136,17358.0,17357.0,1.731408]
[1673451955863,0.85835171,17358.0,17357.0,1.731408]
[1673451956071,1.06602471,17358.0,17357.0,1.731408]
[1673451956349,0.85835171,17358.0,17357.0,1.731408]
[1673451957408,0.136,17358.0,17357.0,2.031408]
[1673451959687,0.794788,17358.0,17357.0,1.731408]
[1673451959940,1.002461,17358.0,17357.0,1.731408]
[1673451962037,0.794788,17358.0,17357.0,1.155272]
[1673451962296,1.002461,17358.0,17357.0,1.155272]
[1673451962805,0.794788,17358.0,17357.0,1.155272]
[1673451963593,0.794788,17358.0,17357.0,1.731408]
[1673451964376,0.136,17358.0,17357.0,1.731408]
[1673451964938,0.8567752,17358.0,17357.0,1.731408]
[1673451965193,0.6491022,17358.0,17357.0,1.731408]
[1673451965715,0.8567752,17358.0,17357.0,1.731408]
[1673451965989,0.454373,17358.0,17357.0,0.579136]
[1673451966519,1.44353443,17358.0,17357.0,0.003]
[1673451966524,1.74353443,17358.0,17357.0,0.003]
[1673451967046,1.74353443,17358.0,17353.0,0.17201814]
[1673451967047,1.81126081,17358.0,17353.0,0.17201814]
[1673451967307,1.81126081,17358.0,17352.0,1.41470637]
[1673451967308,0.1104,17355.0,17352.0,1.41470637]
[1673451967574,0.66478852,17354.0,17353.0,0.51348909]
[1673451967847,0.53755449,17355.0,17352.0,0.576293]
[1673451968163,0.77523238,17355.0,17353.0,0.005]
[1673451968416,0.3,17354.0,17353.0,0.005]
[1673451968671,0.3,17354.0,17352.0,1.14555088]
[1673451969231,0.84294428,17354.0,17352.0,1.14555088]
[1673451969487,0.94798218,17354.0,17352.0,1.14555088]
[1673451969744,1.38343645,17354.0,17352.0,1.16655088]
[1673451970005,0.64724445,17353.0,17352.0,1.16655088]
[1673451970268,0.64724445,17353.0,17352.0,1.74285288]
[1673451970770,0.64724445,17353.0,17352.0,1.73137786]
[1673451971062,0.64724445,17353.0,17352.0,1.71037786]
[1673451971319,0.64724445,17353.0,17352.0,2.03137786]
[1673451971320,0.009,17353.0,17352.0,2.03137786]
[1673451971675,0.009,17353.0,17352.0,2.203396]
[1673451971934,1.02553579,17354.0,17352.0,2.779698]
[1673451972197,0.3,17355.0,17353.0,0.86322717]
[1673451972451,0.68611514,17355.0,17354.0,1.152472]
[1673451972711,0.68611514,17355.0,17354.0,1.51338]
[1673451973167,0.68611514,17355.0,17354.0,1.14099832]
[1673451973435,0.98611514,17355.0,17354.0,1.14099832]
[1673451974476,0.98611514,17355.0,17354.0,1.71723432]
[1673451974477,0.69711514,17355.0,17354.0,1.71723432]
[1673451974754,0.68611514,17355.0,17354.0,1.71723432]
[1673451975016,0.084,17355.0,17354.0,2.68420339]
[1673451975269,0.084,17355.0,17354.0,2.85731605]
[1673451975551,0.084,17355.0,17354.0,3.90877136]
[1673451976617,0.084,17355.0,17354.0,4.08124576]
[1673451977150,0.084,17355.0,17354.0,4.08974576]
[1673451977421,0.084,17355.0,17354.0,3.22703891]
[1673451981058,0.084,17355.0,17354.0,2.86613091]
[1673451981560,0.084,17355.0,17354.0,3.12415812]
[1673451981816,0.084,17355.0,17354.0,3.18050731]
[1673451982553,0.084,17355.0,17354.0,2.86613091]
[1673451982812,0.084,17355.0,17354.0,2.86503639]
[1673451983332,0.084,17355.0,17354.0,2.56503639]
[1673451983830,0.084,17355.0,17354.0,2.86503639]
[1673451984078,0.084,17355.0,17354.0,3.1230636]
[1673451984330,0.084,17355.0,17354.0,3.17942139]
[1673451985114,0.084,17355.0,17354.0,3.35158093]
[1673451985371,0.084,17355.0,17354.0,3.88558023]
[1673451985619,0.084,17355.0,17354.0,4.14426766]
[1673451985881,0.084,17355.0,17354.0,3.71314915]
[1673451986136,0.084,17355.0,17354.0,2.88020343]
[1673451986395,0.084,17355.0,17354.0,2.56515821]
[1673451986642,0.0756,17355.0,17354.0,2.56515821]
[1673451987909,0.0756,17355.0,17354.0,2.39270339]
[1673451988159,0.0756,17355.0,17354.0,1.72123432]
[1673451988160,0.77850593,17355.0,17354.0,1.72123432]
[1673451988449,1.41266927,17355.0,17354.0,1.14499832]
[1673451988914,0.98617893,17355.0,17354.0,1.14499832]
[1673451989418,0.77850593,17355.0,17354.0,1.14499832]
[1673451990451,0.98617893,17355.0,17354.0,1.14499832]
[1673451992016,1.28617893,17355.0,17354.0,1.14499832]
[1673451993056,1.07850593,17355.0,17354.0,1.14499832]
[1673451993311,1.28617893,17355.0,17354.0,1.14499832]
[1673451993576,1.28617893,17355.0,17354.0,0.56876232]
[1673451993577,1.7127081,17355.0,17354.0,0.56876232]
[1673451993837,1.7127081,17355.0,17354.0,0.004]
[1673451995888,1.28617893,17355.0,17354.0,0.004]
[1673451996184,1.28617893,17355.0,17354.0,0.580236]
[1673451996675,1.07850593,17355.0,17354.0,1.156472]
[1673451996933,0.77850593,17355.0,17354.0,1.156472]
[1673451997925,0.77850593,17355.0,17354.0,2.16309311]
[1673451998184,0.0756,17355.0,17354.0,2.73932911]
[1673451998948,0.12713919,17355.0,17354.0,2.73932911]
[1673451999487,0.12713919,17355.0,17354.0,3.6657572]
[1673451999737,0.12713919,17355.0,17354.0,3.49376534]
[1673452000827,0.12713919,17355.0,17354.0,3.11734187]
[1673452001093,0.12713919,17355.0,17354.0,2.43937497]
[1673452001364,0.11442527,17355.0,17354.0,3.11879145]
[1673452001619,0.11442527,17355.0,17354.0,3.49521492]
[1673452002146,0.11442527,17355.0,17354.0,4.20061546]
[1673452002406,0.11442527,17355.0,17354.0,4.02811478]
[1673452002710,0.11442527,17355.0,17354.0,3.49394849]
[1673452002965,0.11442527,17355.0,17354.0,3.91333578]
[1673452003494,0.11442527,17355.0,17354.0,3.91348436]
[1673452004058,0.11442527,17355.0,17354.0,2.89076852]
[1673452004315,0.11442527,17355.0,17354.0,3.00106852]
[1673452005864,0.11442527,17355.0,17354.0,3.78967862]
[1673452006127,0.11442527,17355.0,17354.0,3.27626233]
[1673452006389,0.11442527,17355.0,17354.0,3.00106852]
[1673452006660,0.11442527,17355.0,17354.0,3.78876814]
[1673452006917,0.11442527,17355.0,17354.0,3.5230092]
[1673452010775,0.11442527,17355.0,17354.0,3.51826551]
[1673452011030,0.11442527,17355.0,17354.0,3.79301267]
[1673452011276,0.11442527,17355.0,17354.0,4.30642896]
[1673452011527,0.11442527,17355.0,17354.0,3.67893197]
[1673452012026,0.11442527,17355.0,17354.0,4.32373442]
[1673452012280,0.11442527,17355.0,17354.0,3.53557097]
[1673452013830,0.11442527,17355.0,17354.0,3.6809953]
[1673452014088,0.11442527,17355.0,17354.0,3.9021953]
[1673452014381,0.08147348,17355.0,17354.0,3.38877901]
[1673452014621,0.08147348,17355.0,17354.0,3.62918298]
[1673452014876,0.08147348,17355.0,17354.0,3.90599347]
[1673452015127,0.07003095,17355.0,17354.0,3.90599347]
[1673452015397,0.05153919,17355.0,17354.0,3.90199347]
[1673452015693,0.06053919,17355.0,17354.0,3.98299347]
[1673452015906,0.05153919,17355.0,17354.0,3.90199347]
[1673452016154,0.06053919,17355.0,17354.0,3.98299347]
[1673452018433,0.06053919,17355.0,17354.0,3.70618298]
[1673452018699,0.06053919,17355.0,17354.0,3.98399347]
[1673452019438,0.06053919,17355.0,17354.0,4.57794114]
[1673452019692,0.42806571,17359.0,17355.0,0.3]
[1673452019961,0.42806571,17359.0,17358.0,0.17227939]
[1673452019962,0.00281237,17359.0,17358.0,0.17227939]